fUSD/lending_fUSD_20260218
["ID","MTS","AMOUNT","RATE_DAILY","PERIOD"]
[405950153,1771438244308,-2500.0,0.00010944,2]
[405950154,1771438244318,-1744.0224,0.00010944,2]
[405950155,1771438244328,-166.66,0.00010959,2]
[405950156,1771438244339,-150.0,0.00010959,2]
[405950157,1771438244348,-550.13,0.00010959,2]
[405950158,1771438244359,-166.66,0.00011068,2]
[405950159,1771438244368,-200.0,0.00011096,2]
[405950160,1771438244378,-33900.5201987,0.00011099,2]
[405950161,1771438244387,-33900.52019867,0.00011099,2]
[405950162,1771438244397,-33900.52019867,0.00011099,2]
[405950163,1771438244406,-33900.52019867,0.00011099,2]
[405950164,1771438244416,-21223.49816198,0.00011099,2]
[405950165,1771438244426,-21223.49816196,0.00011099,2]
[405950166,1771438244436,-21223.49816196,0.00011099,2]
[405950167,1771438244445,-166.66,0.00011178,2]
[405950168,1771438244455,-166.66,0.00011288,2]
[405950169,1771438244464,-166.66,0.00011397,2]
[405950170,1771438244474,-1813.59875997,0.00011409,2]
[405950171,1771438244483,-550.13,0.00011416,2]
[405950172,1771438244492,-10000.0,0.00011437,2]
[405950173,1771438244502,-166.66,0.00011507,2]
[405950174,1771438244512,-33900.52019867,0.00011589,2]
[405950175,1771438244522,-200.0,0.00011644,2]
[405950176,1771438244531,-21223.49816196,0.00011744,2]
[405950177,1771438244541,-550.13,0.00011872,2]
[405950178,1771438244551,-15306.69,0.00012192,2]
[405950179,1771438244560,-200.0,0.00012192,2]
[405950180,1771438244570,-550.13,0.00012329,2]
[405950181,1771438244579,-200.0,0.0001274,2]
[405950182,1771438244590,-21223.49816196,0.0001277,2]
[405950183,1771438244812,-33900.52019867,0.00012851,2]
[405950184,1771438244822,-500.0,0.00013,2]
[405950185,1771438244832,-500.0,0.00013,2]
[405950186,1771438244841,-500.0,0.00013,2]
[405950187,1771438244850,-500.0,0.00013,2]
[405950188,1771438244859,-500.0,0.00013,2]
[405950189,1771438244874,-500.0,0.00013,2]
[405950190,1771438244884,-500.0,0.00013,2]
[405950191,1771438244894,-500.0,0.00013,2]
[405950192,1771438244904,-500.0,0.00013,2]
[405950193,1771438244915,-500.0,0.00013,2]
[405950194,1771438244927,-500.0,0.00013,2]
[405950195,1771438244939,-500.0,0.00013,2]
[405950196,1771438244948,-500.0,0.00013,2]
[405950197,1771438244959,-500.0,0.00013,2]
[405950198,1771438244970,-500.0,0.00013,2]
[405950199,1771438244982,-800.0,0.00013,2]
[405950200,1771438244992,-500.0,0.00013,2]
[405950201,1771438245003,-1813.59875997,0.00013032,2]
[405950202,1771438245014,-301.98,0.00013063,2]
[405950203,1771438245023,-160.0,0.00013103,2]
[405950204,1771438245032,-173.62051493,0.00013103,2]
[405950205,1771438245042,-600.0,0.00013172,2]
[405950206,1771438245051,-600.0,0.00013172,2]
[405950207,1771438245062,-201.93,0.00013172,2]
[405950208,1771438245072,-200.0,0.00013288,2]
[405950210,1771438245081,-500.0,0.00013698,2]
[405950212,1771438245090,-500.0,0.00013698,2]
[405950214,1771438245101,-500.0,0.00013698,2]
[405950215,1771438245110,-500.0,0.00013698,2]
[405950216,1771438245120,-500.0,0.00013698,2]
[405950217,1771438245130,-500.0,0.00013698,2]
[405950218,1771438245139,-500.0,0.00013698,2]
[405950219,1771438245149,-500.0,0.00013698,2]
[405950220,1771438245160,-500.0,0.00013698,2]
[405950221,1771438245171,-500.0,0.00013698,2]
[405950222,1771438245182,-500.0,0.00013698,2]
[405950223,1771438245191,-500.0,0.00013698,2]
[405950224,1771438245200,-626.40473759,0.00013698,2]
[405950225,1771438245210,-500.0,0.00013698,2]
[405950226,1771438245221,-500.0,0.00013698,2]
[405950227,1771438245232,-500.0,0.00013698,2]
[405950228,1771438245242,-500.0,0.00013698,2]
[405950229,1771438245251,-500.0,0.00013698,2]
[405950230,1771438245262,-500.0,0.00013698,2]
[405950231,1771438245271,-500.0,0.00013698,2]
[405950232,1771438245281,-500.0,0.00013698,2]
[405950233,1771438245290,-500.0,0.00013698,2]
[405950234,1771438245300,-500.0,0.00013698,2]
[405950235,1771438245309,-500.0,0.00013698,2]
[405950236,1771438245319,-500.0,0.00013698,2]
[405950237,1771438245328,-500.0,0.00013698,2]
[405950238,1771438245337,-500.0,0.00013698,2]
[405950239,1771438245347,-500.0,0.00013698,2]
[405950240,1771438245356,-500.0,0.00013698,2]
[405950241,1771438245366,-500.0,0.00013698,2]
[405950242,1771438245375,-500.0,0.00013698,2]
[405950243,1771438245384,-500.0,0.00013698,2]
[405950244,1771438245393,-500.0,0.00013698,2]
[405950245,1771438245402,-500.0,0.00013698,2]
[405950246,1771438245412,-500.0,0.00013698,2]
[405950247,1771438245422,-500.0,0.00013698,2]
[405950248,1771438245437,-500.0,0.00013698,2]
[405950249,1771438245447,-656.0,0.00013698,2]
[405950250,1771438245456,-656.0,0.00013698,2]
[405950251,1771438245466,-616.8,0.00013698,2]
[405950252,1771438245476,-656.0,0.00013698,2]
[405950253,1771438245487,-616.8,0.00013698,2]
[405950254,1771438245499,-656.0,0.00013698,2]
[405950255,1771438245510,-616.8,0.00013698,2]
[405950256,1771438245520,-656.0,0.00013698,2]
[405950257,1771438245529,-616.8,0.00013698,2]
[405950258,1771438245539,-656.0,0.00013698,2]
[405950259,1771438245548,-616.8,0.00013698,2]
[405950260,1771438245557,-656.0,0.00013698,2]
[405950261,1771438245568,-616.8,0.00013698,2]
[405950262,1771438245577,-656.0,0.00013698,2]
[405950263,1771438245587,-616.8,0.00013698,2]
[405950264,1771438245596,-656.0,0.00013698,2]
[405950265,1771438245605,-616.8,0.00013698,2]
[405950266,1771438245614,-656.0,0.00013698,2]
[405950267,1771438245623,-616.8,0.00013698,2]
[405950268,1771438245632,-656.0,0.00013698,2]
[405950269,1771438245641,-616.8,0.00013698,2]
[405950270,1771438245651,-616.8,0.00013698,2]
[405950271,1771438245660,-656.0,0.00013698,2]
[405950272,1771438245671,-656.0,0.00013698,2]
[405950273,1771438245682,-616.8,0.00013698,2]
[405950274,1771438245692,-616.8,0.00013698,2]
[405950275,1771438245701,-656.0,0.00013698,2]
[405950276,1771438245710,-616.8,0.00013698,2]
[405950277,1771438245722,-656.0,0.00013698,2]
[405950278,1771438245732,-616.8,0.00013698,2]
[405950279,1771438245743,-656.0,0.00013698,2]
[405950280,1771438245753,-616.8,0.00013698,2]
[405950281,1771438245763,-1121.34,0.00013698,2]
[405950282,1771438245773,-1121.34,0.00013698,2]
[405950283,1771438245783,-1121.34,0.00013698,2]
[405950284,1771438245793,-1121.34,0.00013698,2]
[405950285,1771438245803,-1121.34,0.00013698,2]
[405950286,1771438245812,-1121.34,0.00013698,2]
[405950287,1771438245821,-1121.34,0.00013698,2]
[405950288,1771438245831,-1121.34,0.00013698,2]
[405950289,1771438245841,-1121.34,0.00013698,2]
[405950290,1771438245852,-1121.34,0.00013698,2]
[405950291,1771438245863,-1121.34,0.00013698,2]
[405950292,1771438245878,-1121.34,0.00013698,2]
[405950293,1771438245887,-1121.34,0.00013698,2]
[405950294,1771438245898,-1121.34,0.00013698,2]
[405950295,1771438245910,-1121.34,0.00013698,2]
[405950296,1771438245919,-1121.34,0.00013698,2]
[405950297,1771438245929,-500.0,0.00013698,2]
[405950298,1771438245938,-500.0,0.00013698,2]
[405950299,1771438245950,-500.0,0.00013698,2]
[405950300,1771438245961,-207.45341445,0.00013698,2]
[405950302,1771438245971,-500.0,0.00013698,2]
[405950304,1771438245980,-500.0,0.00013698,2]
[405950306,1771438245990,-500.0,0.00013698,2]
[405950308,1771438245999,-500.0,0.00013698,2]
[405950310,1771438246009,-500.0,0.00013698,2]
[405950312,1771438246018,-500.0,0.00013698,2]
[405950314,1771438246028,-500.0,0.00013698,2]
[405950317,1771438246037,-500.0,0.00013698,2]
[405950318,1771438246047,-500.0,0.00013698,2]
[405950321,1771438246057,-500.0,0.00013698,2]
[405950323,1771438246066,-500.0,0.00013698,2]
[405950325,1771438246076,-500.0,0.00013698,2]
[405950328,1771438246086,-500.0,0.00013698,2]
[405950331,1771438246095,-500.0,0.00013698,2]
[405950333,1771438246104,-500.0,0.00013698,2]
[405950334,1771438246113,-500.0,0.00013698,2]
[405950335,1771438246123,-500.0,0.00013698,2]
[405950336,1771438246133,-500.0,0.00013698,2]
[405950337,1771438246144,-500.0,0.00013698,2]
[405950338,1771438246154,-500.0,0.00013698,2]
[405950339,1771438246167,-500.0,0.00013698,2]
[405950340,1771438246176,-500.0,0.00013698,2]
[405950341,1771438246190,-500.0,0.00013698,2]
[405950342,1771438246199,-500.0,0.00013698,2]
[405950343,1771438246210,-500.0,0.00013698,2]
[405950344,1771438246221,-500.0,0.00013698,2]
[405950345,1771438246231,-500.0,0.00013698,2]
[405950346,1771438246240,-500.0,0.00013698,2]
[405950347,1771438246250,-500.0,0.00013698,2]
[405950348,1771438246260,-500.0,0.00013698,2]
[405950349,1771438246269,-500.0,0.00013698,2]
[405950350,1771438246279,-500.0,0.00013698,2]
[405950351,1771438246290,-500.0,0.00013698,2]
[405950352,1771438246299,-500.0,0.00013698,2]
[405950353,1771438246309,-500.0,0.00013698,2]
[405950354,1771438246319,-500.0,0.00013698,2]
[405950355,1771438246328,-500.0,0.00013698,2]
[405950356,1771438246338,-500.0,0.00013698,2]
[405950357,1771438246349,-500.0,0.00013698,2]
[405950358,1771438246359,-500.0,0.00013698,2]
[405950359,1771438246369,-551.5455423,0.00013698,2]
[405950360,1771438246379,-500.0,0.00013698,2]
[405950361,1771438246388,-500.0,0.00013698,2]
[405950362,1771438246398,-500.0,0.00013698,2]
[405950363,1771438246408,-500.0,0.00013698,2]
[405950364,1771438246418,-500.0,0.00013698,2]
[405950365,1771438246429,-500.0,0.00013698,2]
[405950366,1771438246440,-500.0,0.00013698,2]
[405950367,1771438246450,-500.0,0.00013698,2]
[405950368,1771438246459,-500.0,0.00013698,2]
[405950369,1771438246469,-500.0,0.00013698,2]
[405950370,1771438246479,-500.0,0.00013698,2]
[405950371,1771438246489,-500.0,0.00013698,2]
[405950372,1771438246499,-500.0,0.00013698,2]
[405950373,1771438246509,-500.0,0.00013698,2]
[405950374,1771438246518,-500.0,0.00013698,2]
[405950376,1771438246528,-500.0,0.00013698,2]
[405950378,1771438246537,-500.0,0.00013698,2]
[405950380,1771438246547,-500.0,0.00013698,2]
[405950382,1771438246558,-334.63335297,0.00013698,2]
[405950384,1771438246567,-379.92,0.00013699,2]
[405950386,1771438246577,-9137.12,0.00013699,2]
[405950388,1771438246586,-261.59,0.00013699,2]
[405950390,1771438246596,-217.99,0.00013699,2]
[405950392,1771438246606,-181.66,0.00013699,2]
[405950393,1771438246615,-151.38,0.00013699,2]
[405950394,1771438246624,-756.95,0.00013699,2]
[405950395,1771438246635,-500.0,0.00013699,2]
[405950396,1771438246644,-214.59643228,0.000137,2]
[405950397,1771438246654,-618.68,0.000137,2]
[405950398,1771438246663,-618.68,0.000137,2]
[405950399,1771438246674,-618.68,0.000137,2]
[405950400,1771438246684,-618.68,0.000137,2]
[405950401,1771438246694,-618.68,0.000137,2]
[405950402,1771438246703,-873.19,0.00013727,2]
[405950403,1771438246712,-2221.57017581,0.00013727,2]
[405950404,1771438246722,-500.0,0.00013754,2]
[405950405,1771438246731,-21223.49816196,0.00013796,2]
[405950406,1771438246741,-500.0,0.00013809,2]
[405950407,1771438246751,-200.0,0.00013836,2]
[405950408,1771438246760,-500.0,0.00013863,2]
[405950409,1771438246771,-500.0,0.00013918,2]
[405950410,1771438246781,-513.70916545,0.00013973,2]
[405950411,1771438246790,-500.0,0.0001405,2]
[405950412,1771438246800,-500.0,0.0001405,2]
[405950413,1771438246810,-795.55172821,0.0001405,2]
[405950414,1771438246820,-500.0,0.0001405,2]
[405950415,1771438246830,-500.0,0.0001405,2]
[405950417,1771438246839,-500.0,0.0001405,2]
[405950419,1771438246849,-500.0,0.0001405,2]
[405950420,1771438246858,-500.0,0.0001405,2]
[405950421,1771438246868,-500.0,0.0001405,2]
[405950422,1771438246880,-500.0,0.0001405,2]
[405950423,1771438246889,-500.0,0.0001405,2]
[405950424,1771438246899,-500.0,0.0001405,2]
[405950425,1771438246908,-500.0,0.0001405,2]
[405950426,1771438246918,-500.0,0.0001405,2]
[405950427,1771438246928,-500.0,0.0001405,2]
[405950428,1771438246939,-500.0,0.0001405,2]
[405950429,1771438246949,-500.0,0.0001405,2]
[405950430,1771438246959,-500.0,0.0001405,2]
[405950431,1771438246968,-500.0,0.0001405,2]
[405950432,1771438246977,-500.0,0.0001405,2]
[405950433,1771438246987,-600.0,0.0001405,2]
[405950434,1771438246996,-500.0,0.0001405,2]
[405950435,1771438247006,-500.0,0.00014065,2]
[405950436,1771438247015,-500.0,0.00014065,2]
[405950437,1771438247024,-500.0,0.00014065,2]
[405950438,1771438247034,-500.0,0.00014065,2]
[405950439,1771438247043,-500.0,0.00014065,2]
[405950440,1771438247053,-613.66,0.00014094,2]
[405950441,1771438247062,-33900.52019867,0.00014113,2]
[405950442,1771438247071,-201.3,0.00014115,2]
[405950443,1771438247080,-1000.0,0.00014116,7]
[405950444,1771438247090,-500.0,0.00014132,2]
[405950445,1771438247099,-379.92,0.00014384,2]
[405950446,1771438247108,-9999.99,0.00014504,2]
[405950447,1771438247118,-23735.44,0.00014504,2]
[405950448,1771438247127,-1500.0,0.0001452,2]
[405950449,1771438247136,-150.0,0.00014534,2]
[405950450,1771438247146,-151.0,0.00014634,2]
[405950451,1771438247155,-1813.59875997,0.00014655,2]
[405950452,1771438247164,-150.06482412,0.00014723,2]
[405950453,1771438247174,-21223.49816196,0.00014822,2]
[405950454,1771438247183,-900.0,0.000149,5]
[405950455,1771438247193,-250.0,0.00015,2]
[405950456,1771438247202,-379.92,0.00015068,2]
[405950457,1771438247211,-301.98,0.00015167,2]
[405950458,1771438247274,-600.0,0.00015244,2]
[405950459,1771438247283,-600.0,0.00015244,2]
[405950460,1771438247292,-201.93,0.00015244,2]
[405950461,1771438247300,-33900.52019867,0.00015375,2]
[405950462,1771438247310,-500.0,0.00015599,2]
[405950463,1771438247319,-500.0,0.00015599,2]
[405950464,1771438247328,-500.0,0.00015599,2]
[405950465,1771438247338,-500.0,0.00015599,2]
[405950466,1771438247347,-500.0,0.00015599,2]
[405950467,1771438247357,-379.92,0.00015753,2]
[405950468,1771438247366,-21223.49816196,0.00015848,2]
[405950469,1771438247376,-507.0,0.0001605,2]
[405950470,1771438247385,-9999.99,0.00016116,2]
[405950471,1771438247394,-1813.59875997,0.00016277,2]
[405950472,1771438247403,-1219.539,0.0001638,2]
[405950473,1771438247413,-2452.0,0.00016391,2]
[405950474,1771438247423,-5973.0,0.00016391,2]
[405950475,1771438247432,-412.0,0.00016391,2]
[405950476,1771438247442,-2836.0,0.000164,2]
[405950477,1771438247453,-379.92,0.00016438,2]
[405950478,1771438247466,-1000.0,0.00016486,2]
[405950479,1771438247476,-1000.0,0.00016554,2]
[405950480,1771438247485,-1000.0,0.00016606,2]
[405950481,1771438247494,-1000.0,0.00016615,2]
[405950482,1771438247503,-1000.0,0.00016617,2]
[405950483,1771438247512,-1000.0,0.00016633,2]
[405950484,1771438247521,-33900.52019867,0.00016637,2]
[405950485,1771438247532,-656.0,0.00016644,2]
[405950486,1771438247542,-616.8,0.00016644,2]
[405950487,1771438247551,-1121.34,0.00016644,2]
[405950488,1771438247562,-500.0,0.00016644,2]
[405950489,1771438247572,-216.12,0.00016644,2]
[405950490,1771438247582,-1000.0,0.00016688,2]
[405950491,1771438247591,-1000.0,0.00016711,2]
[405950492,1771438247600,-1000.0,0.00016728,2]
[405950493,1771438247611,-1000.0,0.00016739,2]
[405950494,1771438247621,-1000.0,0.00016774,2]
[405950495,1771438247631,-1000.0,0.000168,2]
[405950496,1771438247642,-1000.0,0.00016844,2]
[405950497,1771438247652,-37237.52246235,0.00016845,2]
[405950498,1771438247663,-1000.0,0.00016865,2]
[405950499,1771438247672,-1000.0,0.00016872,2]
[405950500,1771438247681,-21223.49816196,0.00016874,2]
[405950501,1771438247690,-500.0,0.00016887,2]
[405950502,1771438247701,-500.0,0.00016887,2]
[405950503,1771438247712,-500.0,0.00016887,2]
[405950504,1771438247721,-500.0,0.00016887,2]
[405950505,1771438247731,-500.0,0.00016887,2]
[405950506,1771438247741,-500.0,0.00016887,2]
[405950507,1771438247751,-500.0,0.00016887,2]
[405950508,1771438247761,-500.0,0.00016887,2]
[405950509,1771438247770,-500.0,0.00016887,2]
[405950510,1771438247779,-500.0,0.00016887,2]
[405950511,1771438247789,-308.62455366,0.00016887,2]
[405950512,1771438247800,-500.0,0.00016887,2]
[405950513,1771438247811,-500.0,0.00016887,2]
[405950514,1771438247821,-500.0,0.00016887,2]
[405950515,1771438247830,-250.0,0.00016887,2]
[405950516,1771438247839,-500.0,0.00016887,2]
[405950517,1771438247848,-1000.0,0.00016887,2]
[405950518,1771438247857,-250.0,0.00016887,2]
[405950519,1771438247867,-500.0,0.00016887,2]
[405950520,1771438247879,-1000.0,0.00016887,2]
[405950521,1771438247891,-578.20924308,0.00016887,2]
[405950522,1771438247900,-250.0,0.00016887,2]
[405950523,1771438247912,-500.0,0.00016887,2]
[405950524,1771438247923,-1000.0,0.00016887,2]
[405950525,1771438247933,-250.0,0.00016887,2]
[405950526,1771438247945,-500.0,0.00016887,2]
[405950527,1771438247954,-151.0,0.00016887,2]
[405950528,1771438247965,-798.00068592,0.00016887,2]
[405950529,1771438247975,-250.0,0.00016887,2]
[405950530,1771438247986,-500.0,0.00016887,2]
[405950531,1771438247998,-250.0,0.00016887,2]
[405950532,1771438248008,-500.0,0.00016887,2]
[405950533,1771438248017,-250.0,0.00016887,2]
[405950534,1771438248029,-500.0,0.00016887,2]
[405950535,1771438248039,-255.07259394,0.00016887,2]
[405950536,1771438248048,-174.61919141,0.00016887,2]
[405950537,1771438248057,-693.3919763,0.00016887,2]
[405950538,1771438248067,-166.00545754,0.00016887,2]
[405950539,1771438248077,-162.380719,0.00016887,2]
[405950540,1771438248088,-288.82629962,0.00016887,2]
[405950541,1771438248098,-277.35679052,0.00016887,2]
[405950542,1771438248108,-1000.0,0.00016888,2]
[405950543,1771438248118,-1000.0,0.00016906,2]
[405950544,1771438248127,-1000.0,0.00016917,2]
[405950545,1771438248136,-1000.0,0.0001692,2]
[405950546,1771438248148,-1000.0,0.00016925,2]
[405950547,1771438248160,-1000.0,0.00016939,2]
[405950548,1771438248171,-1000.0,0.00016939,2]
[405950549,1771438248182,-151.0,0.00016942,2]
[405950550,1771438248191,-719.04747942,0.00016942,2]
[405950551,1771438248200,-1000.0,0.00016967,2]
[405950552,1771438248209,-1000.0,0.00016973,2]
[405950553,1771438248218,-1000.0,0.00016983,2]
[405950554,1771438248230,-507.0,0.00016991,2]
[405950555,1771438248239,-151.0,0.00016997,2]
[405950556,1771438248248,-745.65223616,0.00016997,2]
[405950557,1771438248258,-300.0,0.00017,2]
[405950558,1771438248267,-1000.0,0.00017004,2]
[405950559,1771438248276,-300.0058184,0.0001701,2]
[405950560,1771438248285,-1000.0,0.00017015,2]
[405950561,1771438248294,-1000.0,0.00017046,2]
[405950562,1771438248303,-151.0,0.00017052,2]
[405950563,1771438248312,-773.2413689,0.00017052,2]
[405950564,1771438248321,-790.0,0.00017064,2]
[405950565,1771438248330,-227.84,0.00017076,2]
[405950566,1771438248339,-1000.0,0.00017084,2]
[405950567,1771438248348,-1000.0,0.00017089,2]
[405950568,1771438248358,-2000.0,0.000171,2]
[405950569,1771438248368,-151.0,0.00017107,2]
[405950570,1771438248377,-801.85129955,0.00017107,2]
[405950571,1771438248387,-1000.0,0.0001714,2]
[405950572,1771438248396,-1000.0,0.00017143,2]
[405950573,1771438248406,-790.0,0.00017157,2]
[405950574,1771438248415,-271.22537401,0.00017162,2]
[405950575,1771438248424,-831.51979763,0.00017162,2]
[405950576,1771438248436,-1000.0,0.00017173,2]
[405950577,1771438248446,-790.0,0.00017174,2]
[405950578,1771438248455,-1000.0,0.00017188,2]
[405950579,1771438248466,-1000.0,0.0001719,2]
[405950580,1771438248476,-1000.0,0.00017199,2]
[405950581,1771438248485,-862.28603014,0.00017217,2]
[405950582,1771438248495,-1000.0,0.00017221,2]
[405950583,1771438248506,-500.0,0.0001724,2]
[405950584,1771438248516,-500.0,0.0001724,2]
[405950585,1771438248525,-501.1551627,0.0001724,2]
[405950586,1771438248534,-500.0,0.0001724,2]
[405950587,1771438248544,-500.0,0.0001724,2]
[405950588,1771438248554,-1000.0,0.00017245,2]
[405950589,1771438248564,-1000.0,0.0001725,2]
[405950590,1771438248575,-1000.0,0.00017255,2]
[405950591,1771438248585,-350.0,0.00017261,2]
[405950592,1771438248596,-1000.0,0.00017264,2]
[405950593,1771438248606,-1000.0,0.00017264,2]
[405950594,1771438248615,-150.0,0.0001727,2]
[405950595,1771438248623,-1000.0,0.00017271,2]
[405950596,1771438248632,-894.19061326,0.00017272,2]
[405950597,1771438248641,-1000.0,0.00017281,2]
[405950598,1771438248650,-150.0,0.00017281,2]
[405950599,1771438248660,-1000.0,0.00017294,2]
[405950600,1771438248669,-350.0,0.00017299,2]
[405950601,1771438248678,-150.0,0.00017301,2]
[405950602,1771438248688,-790.0,0.00017307,2]
[405950603,1771438248697,-1000.0,0.00017317,2]
[405950604,1771438248706,-1000.0,0.00017317,2]
[405950605,1771438248716,-1000.0,0.00017323,2]
[405950606,1771438248725,-201.32,0.00017326,2]
[405950607,1771438248735,-927.27566595,0.00017327,2]
[405950608,1771438248745,-1000.0,0.00017333,2]
[405950609,1771438248755,-150.0,0.0001735,2]
[405950610,1771438248764,-150.0,0.00017352,2]
[405950611,1771438248775,-600.0,0.00017359,2]
[405950612,1771438248786,-1000.0,0.0001736,2]
[405950613,1771438248795,-1000.0,0.00017365,2]
[405950614,1771438248804,-180.65136628,0.00017377,2]
[405950615,1771438248813,-1497.17435983,0.00017377,2]
[405950616,1771438248823,-961.58486559,0.00017382,2]
[405950617,1771438248832,-1000.0,0.00017387,2]
[405950618,1771438248841,-1000.0,0.00017393,2]
[405950619,1771438248851,-150.0,0.000174,2]
[405950620,1771438248862,-600.0,0.00017401,2]
[405950621,1771438248879,-150.0,0.00017404,2]
[405950622,1771438248890,-150.0,0.00017421,2]
[405950623,1771438248901,-150.0,0.00017422,2]
[405950624,1771438248911,-181.08010149,0.00017435,2]
[405950625,1771438248920,-287.61899177,0.00017435,2]
[405950626,1771438248930,-150.0,0.00017436,2]
[405950627,1771438248943,-997.16350561,0.00017437,2]
[405950628,1771438248952,-1000.0,0.00017441,2]
[405950629,1771438248961,-600.0,0.00017443,2]
[405950630,1771438248971,-1000.0,0.00017448,2]
[405950631,1771438248980,-1000.0,0.00017448,2]
[405950632,1771438248989,-150.0,0.00017458,2]
[405950633,1771438248998,-150.0,0.00017464,2]
[405950634,1771438249007,-150.0,0.00017464,2]
[405950635,1771438249017,-1000.0,0.00017474,2]
[405950636,1771438249027,-1000.0,0.00017475,2]
[405950637,1771438249036,-150.0,0.00017477,2]
[405950638,1771438249046,-790.0,0.00017485,2]
[405950639,1771438249056,-150.0,0.00017487,2]
[405950640,1771438249065,-150.0,0.00017491,2]
[405950641,1771438249074,-150.0,0.00017498,2]
[405950642,1771438249083,-1900.0,0.000175,6]
[405950643,1771438249092,-1000.0,0.00017503,2]
[405950644,1771438249101,-150.0,0.0001751,2]
[405950645,1771438249110,-150.0,0.00017514,2]
[405950646,1771438249119,-150.0,0.00017515,2]
[405950647,1771438249128,-1000.0,0.00017517,2]
[405950648,1771438249137,-168.0,0.0001752,2]
[405950649,1771438249146,-1000.0,0.00017524,2]
[405950650,1771438249155,-1000.0,0.00017529,2]
[405950651,1771438249164,-150.0,0.00017537,2]
[405950652,1771438249173,-790.0,0.0001754,2]
[405950653,1771438249183,-1000.0,0.00017575,2]
[405950654,1771438249192,-150.0,0.00017577,2]
[405950655,1771438249201,-2900.0,0.000176,6]
[405950656,1771438249214,-790.0,0.00017631,2]
[405950657,1771438249223,-1000.0,0.00017638,2]
[405950658,1771438249231,-4207.67642787,0.0001764,2]
[405950659,1771438249241,-150.0,0.00017646,2]
[405950660,1771438249250,-150.0,0.0001765,2]
[405950661,1771438249259,-790.0,0.0001765,2]
[405950662,1771438249269,-276.0,0.00017651,2]
[405950663,1771438249278,-150.0,0.00017656,2]
[405950664,1771438249287,-150.0,0.00017663,2]
[405950665,1771438249297,-1000.0,0.00017664,2]
[405950666,1771438249306,-150.0,0.00017673,2]
[405950667,1771438249315,-176.04753717,0.00017677,2]
[405950668,1771438249325,-1000.0,0.00017686,2]
[405950669,1771438249334,-350.0,0.00017687,2]
[405950670,1771438249343,-198.32665723,0.00017695,2]
[405950671,1771438249352,-500.0,0.00017696,2]
[405950672,1771438249361,-3800.0,0.000177,6]
[405950673,1771438249371,-150.0,0.00017701,2]
[405950674,1771438249380,-1000.0,0.00017705,2]
[405950675,1771438249390,-1000.0,0.00017707,2]
[405950676,1771438249399,-150.0,0.00017725,2]
[405950677,1771438249409,-150.0,0.00017729,2]
[405950678,1771438249418,-150.0,0.0001773,2]
[405950679,1771438249427,-1000.0,0.0001773,2]
[405950680,1771438249436,-1000.0,0.00017762,2]
[405950681,1771438249446,-1000.0,0.00017767,2]
[405950682,1771438249455,-1000.0,0.00017768,2]
[405950683,1771438249464,-150.0,0.00017781,2]
[405950684,1771438249473,-1000.0,0.00017788,2]